[Event "Charlotte Fall-IM 2019"]
[Site "Charlotte"]
[Date "2019.11.28"]
[Round "1.1"]
[White "Francisco, Richard"]
[Black "Gauri, Shankar"]
[Result "0-1"]
[ECO "B12"]
[WhiteElo "2281"]
[BlackElo "2340"]
[Annotator "RC"]
[PlyCount "74"]
[EventDate "2019.11.28"]
[EventType "tourn"]
[EventCountry "USA"]
[SourceTitle "playchess.com"]
[Source "ChessBase"]
[SourceQuality "1"]
[TimeControl "5400+30"]

1. e4 c6 2. d4 d5 3. e5 Bf5 4. h4 h5 5. Bd3 Bxd3 6. Qxd3 Qa5+ 7. Nd2 e6 8. Ne2 Qa6 9. Qf3 Ne7 10. O-O c5 11. c3 Nf5 12. g3 Nc6 13. Nb3 cxd4 14. cxd4 Be7 15. Bd2 Rc8 16. Bc3 g6 17. Nf4 O-O 18. Kh1 Qb6 19. Qd1 a5 20. a4 Nb4 21. Rg1 Kg7 22. g4 hxg4 23. Qxg4 Rh8 24. h5 Kf8 25. Nxg6+ fxg6 26. Qxg6 Nd3 27. Nc5 Rxc5 28. dxc5 Qxc5 29. Bd2 Bd8 30. Be3 Nxf2+ 31. Bxf2 Qxf2 32. Rg4 Qf3+ 33. Kh2 Qe2+ 34. Kh3 Qe3+ 35. Kg2 Qxe5 36. Rf1 Bf6 37. Kh1 Rxh5+ 0-1

[Event "Charlotte Fall-IM 2019"]
[Site "Charlotte"]
[Date "2019.11.28"]
[Round "2.4"]
[White "Furfine, Jacob"]
[Black "Zhou, Liran"]
[Result "1/2-1/2"]
[ECO "D00"]
[WhiteElo "2302"]
[BlackElo "2314"]
[Annotator "RC"]
[PlyCount "95"]
[EventDate "2019.11.28"]
[EventType "tourn"]
[EventCountry "USA"]
[SourceTitle "playchess.com"]
[Source "ChessBase"]
[SourceQuality "1"]
[TimeControl "5400+30"]

1. d4 {[%emt 1:30:30]} Nf6 {[%emt 1:30:30]} 2. Nc3 {[%emt 0:00:30]} d5 {[%emt 0:00:30]} 3. Bf4 {[%emt 0:00:30]} g6 {[%emt 0:00:30]} 4. e3 {[%emt 0:00:30]} Bg7 {[%emt 0:00:30]} 5. h4 {[%emt 0:00:30]} h5 {[%emt 0:00:30]} 6. Qd2 {[%emt 0:00:30]} O-O {[%emt 0:00:30]} 7. O-O-O {[%emt 0:00:30]} c6 {[%emt 0:00:30]} 8. f3 {[%emt 0:00:30]} b5 {[%emt 0:00:30]} 9. Bd3 {[%emt 0:00:30]} b4 {[%emt 0:00:30]} 10. Na4 {[%emt 0:00:30]} Qa5 {[%emt 0:00:30]} 11. b3 {[%emt 0:00:30]} Ba6 {[%emt 0:00:30]} 12. Kb1 {[%emt 0:00:30]} Bb5 {[%emt 0:00:30]} 13. Nb2 {[%emt 0:00:30]} c5 {[%emt 0:00:30]} 14. Bxb5 {[%emt 0:00:30]} Qxb5 {[%emt 0:00:30]} 15. Nd3 {[%emt 0:00:30]} Nbd7 {[%emt 0:00:30]} 16. dxc5 {[%emt 0:00:30]} a5 {[%emt 0:00:30]} 17. Ne2 {[%emt 0:00:30]} Nxc5 {[%emt 0:00:30]} 18. Nxc5 {[%emt 0:00:30]} Qxc5 {[%emt 0:00:30]} 19. Qd4 {[%emt 0:00:30]} Qc6 {[%emt 0:00:30]} 20. Be5 {[%emt 0:00:30]} Rac8 {[%emt 0:00:30]} 21. Rd2 {[%emt 0:00:30]} Rfd8 {[%emt 0:00:30]} 22. Rhd1 {[%emt 0:00:30]} Qe6 {[%emt 0:00:30]} 23. Nf4 {[%emt 0:00:30]} Qf5 {[%emt 0:00:30]} 24. Bxf6 {[%emt 0:00:30]} Bxf6 {[%emt 0:00:30]} 25. Nxd5 {[%emt 0:00:30]} Kg7 {[%emt 0:00:30]} 26. e4 {[%emt 0:00:30]} Bxd4 {[%emt 0:00:30]} 27. exf5 {[%emt 0:00:30]} Rxd5 {[%emt 0:00:30]} 28. Rxd4 {[%emt 0:00:30]} Rxf5 {[%emt 0:00:30]} 29. Rd5 {[%emt 0:00:30]} e6 {[%emt 0:00:30]} 30. Rxf5 {[%emt 0:00:30]} gxf5 {[%emt 0:00:30]} 31. Rd7 {[%emt 0:00:30]} Kf6 {[%emt 0:00:30]} 32. Kb2 {[%emt 0:00:30]} f4 {[%emt 0:00:30]} 33. Rd2 {[%emt 0:00:30]} Kf5 {[%emt 0:00:30]} 34. a3 {[%emt 0:00:30]} f6 {[%emt 0:00:30]} 35. axb4 {[%emt 0:00:30]} axb4 {[%emt 0:00:30]} 36. Rd4 {[%emt 0:00:30]} Rg8 {[%emt 0:00:30]} 37. Rxb4 {[%emt 0:00:30]} Rxg2 {[%emt 0:00:30]} 38. Rc4 {[%emt 0:00:30]} Rg3 {[%emt 0:00:30]} 39. Rc3 {[%emt 0:00:30]} Ke5 {[%emt 0:00:30]} 40. b4 {[%emt 0:00:30]} Kd5 {[%emt 0:00:30]} 41. b5 {[%emt 0:00:30]} e5 {[%emt 0:00:30]} 42. Kc1 {[%emt 0:00:30]} Rg1+ {[%emt 0:00:30]} 43. Kd2 {[%emt 0:00:30]} Rb1 {[%emt 0:00:30]} 44. Rc8 {[%emt 0:00:30]} f5 {[%emt 0:00:30]} 45. Rf8 {[%emt 0:00:30]} Rxb5 {[%emt 0:00:30]} 46. Rxf5 {[%emt 0:00:30]} Rb1 {[%emt 0:00:30]} 47. Rxh5 {[%emt 0:00:30]} Rf1 {[%emt 0:00:30]} 48. Ke2 {[%emt 0:00:30]} 1/2-1/2

[Event "Charlotte Fall-IM 2019"]
[Site "Charlotte"]
[Date "2019.11.29"]
[Round "3.1"]
[White "Zhou, Liran"]
[Black "Francisco, Richard"]
[Result "1-0"]
[ECO "C88"]
[WhiteElo "2314"]
[BlackElo "2281"]
[Annotator "ChessBase"]
[PlyCount "61"]
[EventDate "2019.11.28"]
[EventType "tourn"]
[EventCountry "USA"]
[SourceTitle "playchess.com"]
[Source "ChessBase"]
[SourceQuality "1"]
[TimeControl "5400+30"]

1. e4 {[%emt 1:30:30]} e5 {[%emt 1:30:30]} 2. Nf3 {[%emt 0:00:30]} Nc6 {[%emt 0:00:30]} 3. Bb5 {[%emt 0:00:30]} a6 {[%emt 0:00:30]} 4. Ba4 {[%emt 0:00:30]} Nf6 {[%emt 0:00:30]} 5. O-O {[%emt 0:00:30]} b5 {[%emt 0:00:30]} 6. Bb3 {[%emt 0:00:30]} Bb7 {[%emt 0:00:30]} 7. d3 {[%emt 0:00:30]} Bd6 {[%emt 0:00:30]} 8. c3 {[%emt 0:00:30]} h6 {[%emt 0:00:30]} 9. Re1 {[%emt 0:00:30]} O-O {[%emt 0:00:30]} 10. Nbd2 {[%emt 0:00:30]} Re8 {[%emt 0:00:30]} 11. Nf1 {[%emt 0:00:30]} Bf8 {[%emt 0:00:30]} 12. Ng3 {[%emt 0:00:30]} d5 {[%emt 0:00:30]} 13. exd5 {[%emt 0:00:30]} Nxd5 {[%emt 0:00:30]} 14. a3 {[%emt 0:00:30]} Qd7 {[%emt 0:00:30]} 15. Ne4 {[%emt 0:00:30]} Rad8 {[%emt 0:00:30]} 16. Bxh6 {[%emt 0:00:30]} gxh6 {[%emt 0:00:30]} 17. Bxd5 {[%emt 0:00:30]} Bg7 {[%emt 0:00:30]} 18. Ba2 {[%emt 0:00:30]} Bc8 {[%emt 0:00:30]} 19. Nc5 {[%emt 0:00:30]} Qd6 {[%emt 0:00:30]} 20. b4 {[%emt 0:00:30]} Bf5 {[%emt 0:00:30]} 21. Nb7 {[%emt 0:00:30]} Qf6 {[%emt 0:00:30]} 22. Nxd8 {[%emt 0:00:30]} Rxd8 {[%emt 0:00:30]} 23. d4 {[%emt 0:00:30]} exd4 {[%emt 0:00:30]} 24. Nxd4 {[%emt 0:00:30]} Nxd4 {[%emt 0:00:30]} 25. cxd4 {[%emt 0:00:30]} Rxd4 {[%emt 0:00:30]} 26. Qf3 {[%emt 0:00:30]} Qg5 {[%emt 0:00:30]} 27. Rad1 {[%emt 0:00:30]} Rf4 {[%emt 0:00:30]} 28. Qa8+ {[%emt 0:00:30]} Kh7 {[%emt 0:00:30]} 29. Bxf7 {[%emt 0:00:30]} Bc3 {[%emt 0:00:30]} 30. Re7 {[%emt 0:00:30]} Rg4 {[%emt 0:00:30]} 31. Bg8+ {[%emt 0:00:30]} 1-0

[Event "Charlotte Fall-IM 2019"]
[Site "Charlotte"]
[Date "2019.11.29"]
[Round "3.2"]
[White "Shen, Christopher"]
[Black "Gauri, Shankar"]
[Result "1-0"]
[ECO "E01"]
[WhiteElo "2306"]
[BlackElo "2340"]
[Annotator "ChessBase"]
[PlyCount "141"]
[EventDate "2019.11.28"]
[EventType "tourn"]
[EventCountry "USA"]
[SourceTitle "playchess.com"]
[Source "ChessBase"]
[SourceQuality "1"]
[TimeControl "5400+30"]

1. Nf3 {[%emt 1:30:30]} d5 {[%emt 1:30:30]} 2. d4 {[%emt 0:00:30]} Nf6 {[%emt 0:00:30]} 3. c4 {[%emt 0:00:30]} e6 {[%emt 0:00:30]} 4. g3 {[%emt 0:00:30]} Bb4+ {[%emt 0:00:30]} 5. Bd2 {[%emt 0:00:30]} Bd6 {[%emt 0:00:30]} 6. Bg2 {[%emt 0:00:30]} c6 {[%emt 0:00:30]} 7. Qb3 {[%emt 0:00:30]} O-O {[%emt 0:00:30]} 8. Bb4 {[%emt 0:00:30]} b6 {[%emt 0:00:30]} 9. Bxd6 {[%emt 0:00:30]} Qxd6 {[%emt 0:00:30]} 10. Nbd2 {[%emt 0:00:30]} Nbd7 {[%emt 0:00:30]} 11. O-O {[%emt 0:00:30]} Bb7 {[%emt 0:00:30]} 12. Qc2 {[%emt 0:00:30]} c5 {[%emt 0:00:30]} 13. cxd5 {[%emt 0:00:30]} exd5 {[%emt 0:00:30]} 14. dxc5 {[%emt 0:00:30]} bxc5 {[%emt 0:00:30]} 15. Rfd1 {[%emt 0:00:30]} Rfe8 {[%emt 0:00:30]} 16. e3 {[%emt 0:00:30]} Nf8 {[%emt 0:00:30]} 17. Nh4 {[%emt 0:00:30]} Qb6 {[%emt 0:00:30]} 18. h3 {[%emt 0:00:30]} Ne6 {[%emt 0:00:30]} 19. Nf5 {[%emt 0:00:30]} Rad8 {[%emt 0:00:30]} 20. Rac1 {[%emt 0:00:30]} h5 {[%emt 0:00:30]} 21. Nb3 {[%emt 0:00:30]} g6 {[%emt 0:00:30]} 22. Nh4 {[%emt 0:00:30]} Ne4 {[%emt 0:00:30]} 23. Nf3 {[%emt 0:00:30]} c4 {[%emt 0:00:30]} 24. Nbd2 {[%emt 0:00:30]} N4c5 {[%emt 0:00:30]} 25. b3 {[%emt 0:00:30]} Nd3 {[%emt 0:00:30]} 26. Rb1 {[%emt 0:00:30]} Nb4 {[%emt 0:00:30]} 27. Qb2 {[%emt 0:00:30]} c3 {[%emt 0:00:30]} 28. Qxc3 {[%emt 0:00:30]} Nxa2 {[%emt 0:00:30]} 29. Qb2 {[%emt 0:00:30]} Nb4 {[%emt 0:00:30]} 30. Ne5 {[%emt 0:00:30]} d4 {[%emt 0:00:30]} 31. Ndc4 {[%emt 0:00:30]} Qb5 {[%emt 0:00:30]} 32. Bxb7 {[%emt 0:00:30]} Qxb7 {[%emt 0:00:30]} 33. exd4 {[%emt 0:00:30]} Ng5 {[%emt 0:00:30]} 34. d5 {[%emt 0:00:30]} Rxd5 {[%emt 0:00:30]} 35. Nd6 {[%emt 0:00:30]} Nf3+ {[%emt 0:00:30]} 36. Nxf3 {[%emt 0:00:30]} Rxd1+ {[%emt 0:00:30]} 37. Rxd1 {[%emt 0:00:30]} Qxf3 {[%emt 0:00:30]} 38. Nxe8 {[%emt 0:00:30]} Qxd1+ {[%emt 0:00:30]} 39. Kh2 {[%emt 0:00:30]} Kf8 {[%emt 0:00:30]} 40. Qh8+ {[%emt 0:00:30]} Ke7 41. Qe5+ {[%emt 0:00:30]} Kf8 {[%emt 0:01:00]} 42. Nf6 {[%emt 0:00:30]} Qd2 {[%emt 0:00:30]} 43. Qb8+ {[%emt 0:00:30]} Kg7 {[%emt 0:00:30]} 44. Ne8+ {[%emt 0:00:30]} Kf8 {[%emt 0:00:30]} 45. Nc7+ {[%emt 0:00:30]} Kg7 {[%emt 0:00:30]} 46. Qxa7 {[%emt 0:00:30]} Nd3 {[%emt 0:00:30]} 47. Qd4+ {[%emt 0:00:30]} Kg8 {[%emt 0:00:30]} 48. Nd5 {[%emt 0:00:30]} Qxf2+ {[%emt 0:00:30]} 49. Qxf2 Nxf2 {[%emt 0:00:30]} 50. Kg2 {[%emt 0:01:00]} Ne4 {[%emt 0:00:30]} 51. b4 {[%emt 0:00:30]} Nd6 {[%emt 0:00:30]} 52. Kf3 {[%emt 0:00:30]} Kf8 {[%emt 0:00:30]} 53. Kf4 {[%emt 0:00:30]} Ke8 {[%emt 0:00:30]} 54. Ke5 {[%emt 0:00:30]} Kd7 {[%emt 0:00:30]} 55. Ne3 {[%emt 0:00:30]} Kc6 {[%emt 0:00:30]} 56. Kf6 {[%emt 0:00:30]} Kb5 {[%emt 0:00:30]} 57. Ke5 {[%emt 0:00:30]} Ne8 {[%emt 0:00:30]} 58. Nd5 {[%emt 0:00:30]} Kc4 {[%emt 0:00:30]} 59. h4 {[%emt 0:00:30]} Kb5 {[%emt 0:00:30]} 60. Nf6 {[%emt 0:00:30]} Ng7 {[%emt 0:00:30]} 61. Ne4 {[%emt 0:00:30]} f5 {[%emt 0:00:30]} 62. Nd6+ {[%emt 0:00:30]} Kxb4 {[%emt 0:00:30]} 63. Kf6 {[%emt 0:00:30]} Kc5 {[%emt 0:00:30]} 64. Kxg7 {[%emt 0:00:30]} Kxd6 {[%emt 0:00:30]} 65. Kxg6 {[%emt 0:00:30]} Ke5 {[%emt 0:00:30]} 66. Kxh5 {[%emt 0:00:30]} Kf6 {[%emt 0:00:30]} 67. Kh6 {[%emt 0:00:30]} f4 {[%emt 0:00:30]} 68. gxf4 {[%emt 0:00:30]} Kf5 {[%emt 0:00:30]} 69. h5 {[%emt 0:00:30]} Kf6 {[%emt 0:00:30]} 70. f5 {[%emt 0:00:30]} Kf7 {[%emt 0:00:30]} 71. Kg5 {[%emt 0:00:30]} 1-0

[Event "Charlotte Fall-IM 2019"]
[Site "Charlotte"]
[Date "2019.11.29"]
[Round "3.5"]
[White "Arribas Lopez, Angel"]
[Black "Tsay, Vincent"]
[Result "1-0"]
[ECO "B23"]
[WhiteElo "2436"]
[BlackElo "2300"]
[Annotator "RC"]
[PlyCount "61"]
[EventDate "2019.11.28"]
[EventType "tourn"]
[EventCountry "USA"]
[SourceTitle "playchess.com"]
[Source "ChessBase"]
[SourceQuality "1"]
[TimeControl "5400+30"]

1. e4 {[%emt 1:30:30]} c5 {[%emt 1:30:30]} 2. Nc3 {[%emt 0:00:30]} e6 {[%emt 0:00:30]} 3. Nge2 {[%emt 0:00:30]} d5 {[%emt 0:00:30]} 4. exd5 {[%emt 0:00:30]} exd5 {[%emt 0:00:30]} 5. d4 {[%emt 0:00:30]} Nf6 {[%emt 0:00:30]} 6. Bg5 {[%emt 0:00:30]} Be6 {[%emt 0:00:30]} 7. Nf4 {[%emt 0:00:30]} cxd4 {[%emt 0:00:30]} 8. Qxd4 {[%emt 0:00:30]} Be7 {[%emt 0:00:30]} 9. O-O-O {[%emt 0:00:30]} O-O {[%emt 0:00:30]} 10. Ncxd5 {[%emt 0:00:30]} Nxd5 {[%emt 0:00:30]} 11. Bxe7 {[%emt 0:00:30]} Qxe7 {[%emt 0:00:30]} 12. Nxd5 {[%emt 0:00:30]} Bxd5 {[%emt 0:00:30]} 13. Qxd5 {[%emt 0:00:30]} Nc6 {[%emt 0:00:30]} 14. Bc4 {[%emt 0:00:30]} Rac8 {[%emt 0:00:30]} 15. Qf5 {[%emt 0:00:30]} g6 {[%emt 0:00:30]} 16. Qf4 {[%emt 0:00:30]} b5 {[%emt 0:00:30]} 17. Bb3 {[%emt 0:00:30]} Na5 {[%emt 0:00:30]} 18. Kb1 {[%emt 0:00:30]} Rfe8 {[%emt 0:00:30]} 19. Bd5 {[%emt 0:00:30]} Red8 {[%emt 0:00:30]} 20. h4 {[%emt 0:00:30]} Nc4 {[%emt 0:00:30]} 21. a3 {[%emt 0:00:30]} Rxd5 {[%emt 0:00:30]} 22. Rxd5 {[%emt 0:00:30]} b4 {[%emt 0:00:30]} 23. Rhd1 {[%emt 0:00:30]} bxa3 {[%emt 0:00:30]} 24. Rd7 {[%emt 0:00:30]} Qe6 {[%emt 0:00:30]} 25. Rd8+ {[%emt 0:00:30]} Rxd8 {[%emt 0:00:30]} 26. Rxd8+ {[%emt 0:00:30]} Kg7 27. h5 {[%emt 0:00:30]} a2+ {[%emt 0:01:00]} 28. Kxa2 {[%emt 0:00:30]} h6 {[%emt 0:00:30]} 29. Qd4+ {[%emt 0:00:30]} Ne5+ {[%emt 0:00:30]} 30. Kb1 {[%emt 0:00:30]} g5 {[%emt 0:00:30]} 31. Qd6 {[%emt 0:00:30]} 1-0

[Event "Charlotte Fall-IM 2019"]
[Site "Charlotte"]
[Date "2019.11.29"]
[Round "4.1"]
[White "Francisco, Richard"]
[Black "Jacobson, Aaron"]
[Result "1-0"]
[ECO "E04"]
[WhiteElo "2281"]
[BlackElo "2301"]
[Annotator "ChessBase"]
[PlyCount "113"]
[EventDate "2019.11.28"]
[EventType "tourn"]
[EventCountry "USA"]
[SourceTitle "playchess.com"]
[Source "ChessBase"]
[SourceQuality "1"]
[TimeControl "5400+30"]

1. Nf3 {[%emt 1:30:30]} d5 {[%emt 1:30:30]} 2. d4 {[%emt 0:00:30]} Nf6 {[%emt 0:00:30]} 3. c4 {[%emt 0:00:30]} e6 {[%emt 0:00:30]} 4. g3 {[%emt 0:00:30]} dxc4 {[%emt 0:00:30]} 5. Bg2 {[%emt 0:00:30]} c6 {[%emt 0:00:30]} 6. O-O {[%emt 0:00:30]} b5 {[%emt 0:00:30]} 7. Bg5 {[%emt 0:00:30]} Be7 {[%emt 0:00:30]} 8. Bxf6 {[%emt 0:00:30]} Bxf6 {[%emt 0:00:30]} 9. Nc3 {[%emt 0:00:30]} Bb7 {[%emt 0:00:30]} 10. Ne5 {[%emt 0:00:30]} Qc7 {[%emt 0:00:30]} 11. a4 {[%emt 0:00:30]} a6 {[%emt 0:00:30]} 12. Ne4 {[%emt 0:00:30]} c5 {[%emt 0:00:30]} 13. Nxf6+ {[%emt 0:00:30]} gxf6 {[%emt 0:00:30]} 14. Bxb7 {[%emt 0:00:30]} Qxb7 {[%emt 0:00:30]} 15. Ng4 {[%emt 0:00:30]} Nd7 {[%emt 0:00:30]} 16. dxc5 {[%emt 0:00:30]} O-O-O {[%emt 0:00:30]} 17. Qc2 {[%emt 0:00:30]} h5 {[%emt 0:00:30]} 18. Ne3 {[%emt 0:00:30]} Nxc5 {[%emt 0:00:30]} 19. axb5 {[%emt 0:00:30]} axb5 {[%emt 0:00:30]} 20. Ra5 {[%emt 0:00:30]} Qb6 {[%emt 0:00:30]} 21. Rfa1 {[%emt 0:00:30]} Nb7 {[%emt 0:00:30]} 22. Ra6 {[%emt 0:00:30]} Qc5 {[%emt 0:00:30]} 23. Qe4 {[%emt 0:00:30]} Kc7 {[%emt 0:00:30]} 24. Ra7 {[%emt 0:00:30]} Qc6 {[%emt 0:00:30]} 25. Qh4 {[%emt 0:00:30]} f5 {[%emt 0:00:30]} 26. Qf6 {[%emt 0:00:30]} h4 {[%emt 0:00:30]} 27. Qe5+ {[%emt 0:00:30]} Kc8 {[%emt 0:00:30]} 28. Ra8+ {[%emt 0:00:30]} Kd7 {[%emt 0:00:30]} 29. Rd1+ {[%emt 0:00:30]} Nd6 {[%emt 0:00:30]} 30. Ra7+ {[%emt 0:00:30]} Kc8 {[%emt 0:00:30]} 31. Rxd6 {[%emt 0:00:30]} Qxd6 {[%emt 0:00:30]} 32. Qxd6 {[%emt 0:00:30]} Rxd6 {[%emt 0:00:30]} 33. Ra8+ {[%emt 0:00:30]} Kc7 {[%emt 0:00:30]} 34. Rxh8 {[%emt 0:00:30]} hxg3 {[%emt 0:00:30]} 35. fxg3 {[%emt 0:00:30]} Rd2 {[%emt 0:00:30]} 36. Kf2 {[%emt 0:00:30]} Rxb2 {[%emt 0:00:30]} 37. h4 {[%emt 0:00:30]} c3 {[%emt 0:00:30]} 38. h5 {[%emt 0:00:30]} Rb1 {[%emt 0:00:30]} 39. Rf8 {[%emt 0:00:30]} b4 {[%emt 0:00:30]} 40. h6 {[%emt 0:00:30]} Rh1 {[%emt 0:00:30]} 41. Rxf7+ {[%emt 0:00:30]} Kd6 {[%emt 0:00:30]} 42. Rb7 {[%emt 0:00:30]} Kc5 {[%emt 0:00:30]} 43. h7 {[%emt 0:00:30]} e5 {[%emt 0:00:30]} 44. Nc2 {[%emt 0:00:30]} f4 {[%emt 0:00:30]} 45. Nxb4 {[%emt 0:00:30]} Rh2+ {[%emt 0:00:30]} 46. Kf3 {[%emt 0:00:30]} Rh3 {[%emt 0:00:30]} 47. Nd3+ {[%emt 0:00:30]} Kd6 {[%emt 0:00:30]} 48. Rg7 {[%emt 0:00:30]} Kd5 {[%emt 0:00:30]} 49. Kg2 {[%emt 0:00:30]} Rh6 {[%emt 0:00:30]} 50. g4 {[%emt 0:00:30]} Kd4 {[%emt 0:00:30]} 51. g5 {[%emt 0:00:30]} Rh5 {[%emt 0:00:30]} 52. g6 {[%emt 0:00:30]} Ke3 {[%emt 0:00:30]} 53. Re7 {[%emt 0:00:30]} e4 {[%emt 0:00:30]} 54. g7 {[%emt 0:00:30]} Rxh7 {[%emt 0:00:30]} 55. Rxe4+ {[%emt 0:00:30]} Kxe4 {[%emt 0:00:30]} 56. g8=Q {[%emt 0:00:30]} Re7 57. Qc4+ {[%emt 0:00:30]} 1-0

[Event "Charlotte Fall-IM 2019"]
[Site "Charlotte"]
[Date "2019.11.29"]
[Round "4.3"]
[White "Furfine, Jacob"]
[Black "Martin Del Campo C., Roberto"]
[Result "1/2-1/2"]
[ECO "B06"]
[WhiteElo "2302"]
[BlackElo "2314"]
[Annotator "ChessBase"]
[PlyCount "70"]
[EventDate "2019.11.28"]
[EventType "tourn"]
[EventCountry "USA"]
[SourceTitle "playchess.com"]
[Source "ChessBase"]
[SourceQuality "1"]
[TimeControl "5400+30"]

1. d4 {[%emt 1:30:30]} d6 {[%emt 1:30:30]} 2. e4 {[%emt 0:00:30]} g6 {[%emt 0:00:30]} 3. Nc3 {[%emt 0:00:30]} Bg7 {[%emt 0:00:30]} 4. Be3 {[%emt 0:00:30]} c6 {[%emt 0:00:30]} 5. a4 {[%emt 0:00:30]} a5 {[%emt 0:00:30]} 6. h3 {[%emt 0:00:30]} Nd7 {[%emt 0:00:30]} 7. Nf3 {[%emt 0:00:30]} e5 {[%emt 0:00:30]} 8. Bc4 {[%emt 0:00:30]} Ngf6 {[%emt 0:00:30]} 9. O-O {[%emt 0:00:30]} O-O {[%emt 0:00:30]} 10. dxe5 {[%emt 0:00:30]} Nxe5 {[%emt 0:00:30]} 11. Nxe5 {[%emt 0:00:30]} dxe5 {[%emt 0:00:30]} 12. Qxd8 {[%emt 0:00:30]} Rxd8 {[%emt 0:00:30]} 13. Rad1 {[%emt 0:00:30]} Rxd1 {[%emt 0:00:30]} 14. Rxd1 {[%emt 0:00:30]} Nd7 {[%emt 0:00:30]} 15. Na2 {[%emt 0:00:30]} Bf8 {[%emt 0:00:30]} 16. Nc1 {[%emt 0:00:30]} Be7 {[%emt 0:00:30]} 17. Nb3 {[%emt 0:00:30]} Kf8 {[%emt 0:00:30]} 18. f3 {[%emt 0:00:30]} Ke8 {[%emt 0:00:30]} 19. Kf2 {[%emt 0:00:30]} Bd8 {[%emt 0:00:30]} 20. Ke2 {[%emt 0:00:30]} Bc7 {[%emt 0:00:30]} 21. Nc5 {[%emt 0:00:30]} Nf8 {[%emt 0:00:30]} 22. Bg5 {[%emt 0:00:30]} b6 {[%emt 0:00:30]} 23. Nd3 {[%emt 0:00:30]} Nd7 {[%emt 0:00:30]} 24. g4 {[%emt 0:00:30]} Ba6 {[%emt 0:00:30]} 25. Bxa6 {[%emt 0:00:30]} Rxa6 {[%emt 0:00:30]} 26. c4 {[%emt 0:00:30]} Bd6 {[%emt 0:00:30]} 27. Bd2 {[%emt 0:00:30]} Ke7 {[%emt 0:00:30]} 28. h4 {[%emt 0:00:30]} Ra8 {[%emt 0:00:30]} 29. Rh1 {[%emt 0:00:30]} Nc5 {[%emt 0:00:30]} 30. Nxc5 {[%emt 0:00:30]} Bxc5 {[%emt 0:00:30]} 31. Rd1 {[%emt 0:00:30]} Bd4 {[%emt 0:00:30]} 32. b3 {[%emt 0:00:30]} Ke6 {[%emt 0:00:30]} 33. Rh1 {[%emt 0:00:30]} Rb8 {[%emt 0:00:30]} 34. h5 {[%emt 0:00:30]} Rb7 {[%emt 0:00:30]} 35. g5 {[%emt 0:00:30]} Rd7 {[%emt 0:00:30]} 1/2-1/2

[Event "Charlotte Fall-IM 2019"]
[Site "Charlotte"]
[Date "2019.11.29"]
[Round "4.4"]
[White "Gauri, Shankar"]
[Black "Tsay, Vincent"]
[Result "1/2-1/2"]
[ECO "E04"]
[WhiteElo "2340"]
[BlackElo "2300"]
[Annotator "ChessBase"]
[PlyCount "59"]
[EventDate "2019.11.28"]
[EventType "tourn"]
[EventCountry "USA"]
[SourceTitle "playchess.com"]
[Source "ChessBase"]
[SourceQuality "1"]
[TimeControl "5400+30"]

1. Nf3 {[%emt 1:30:30]} d5 {[%emt 1:30:30]} 2. c4 {[%emt 0:00:30]} e6 {[%emt 0:00:30]} 3. d4 {[%emt 0:00:30]} Nf6 {[%emt 0:00:30]} 4. g3 {[%emt 0:00:30]} dxc4 {[%emt 0:00:30]} 5. Bg2 {[%emt 0:00:30]} Nc6 {[%emt 0:00:30]} 6. Qa4 {[%emt 0:00:30]} Bb4+ {[%emt 0:00:30]} 7. Bd2 {[%emt 0:00:30]} Nd5 {[%emt 0:00:30]} 8. Bxb4 {[%emt 0:00:30]} Ndxb4 {[%emt 0:00:30]} 9. O-O {[%emt 0:00:30]} Rb8 {[%emt 0:00:30]} 10. Nc3 {[%emt 0:00:30]} a6 {[%emt 0:00:30]} 11. Ne5 {[%emt 0:00:30]} O-O {[%emt 0:00:30]} 12. Nxc6 {[%emt 0:00:30]} Nxc6 {[%emt 0:00:30]} 13. Bxc6 {[%emt 0:00:30]} bxc6 {[%emt 0:00:30]} 14. Qxc6 {[%emt 0:00:30]} Qxd4 {[%emt 0:00:30]} 15. Rfd1 {[%emt 0:00:30]} Qe5 {[%emt 0:00:30]} 16. Rd2 {[%emt 0:00:30]} Rb4 {[%emt 0:00:30]} 17. a3 {[%emt 0:00:30]} Bb7 {[%emt 0:00:30]} 18. Qd7 {[%emt 0:00:30]} Rb3 {[%emt 0:00:30]} 19. Qe7 {[%emt 0:00:30]} h6 {[%emt 0:00:30]} 20. Rad1 {[%emt 0:00:30]} Qf5 {[%emt 0:00:30]} 21. Qxc7 {[%emt 0:00:30]} Rc8 {[%emt 0:00:30]} 22. Qe7 {[%emt 0:00:30]} Kh7 {[%emt 0:00:30]} 23. f3 {[%emt 0:00:30]} Bc6 {[%emt 0:00:30]} 24. Qd6 {[%emt 0:00:30]} e5 {[%emt 0:00:30]} 25. Nd5 {[%emt 0:00:30]} Bxd5 {[%emt 0:00:30]} 26. Qxd5 {[%emt 0:00:30]} Rb5 {[%emt 0:00:30]} 27. Qd6 {[%emt 0:00:30]} a5 {[%emt 0:00:30]} 28. Rc1 {[%emt 0:00:30]} e4 {[%emt 0:00:30]} 29. a4 {[%emt 0:00:30]} Rbc5 {[%emt 0:00:30]} 30. Rc3 {[%emt 0:00:30]} 1/2-1/2

[Event "Charlotte Fall-IM 2019"]
[Site "Charlotte"]
[Date "2019.11.29"]
[Round "4.5"]
[White "Shen, Christopher"]
[Black "Zhou, Liran"]
[Result "1/2-1/2"]
[ECO "E63"]
[WhiteElo "2306"]
[BlackElo "2314"]
[Annotator "ChessBase"]
[PlyCount "72"]
[EventDate "2019.11.28"]
[EventType "tourn"]
[EventCountry "USA"]
[SourceTitle "playchess.com"]
[Source "ChessBase"]
[SourceQuality "1"]
[TimeControl "5400+30"]

1. d4 {[%emt 1:30:30]} Nf6 {[%emt 1:30:30]} 2. c4 {[%emt 0:00:30]} g6 {[%emt 0:00:30]} 3. g3 {[%emt 0:00:30]} Bg7 {[%emt 0:00:30]} 4. Bg2 {[%emt 0:00:30]} O-O {[%emt 0:00:30]} 5. Nc3 {[%emt 0:00:30]} d6 {[%emt 0:00:30]} 6. Nf3 {[%emt 0:00:30]} Nc6 {[%emt 0:00:30]} 7. O-O {[%emt 0:00:30]} a6 {[%emt 0:00:30]} 8. b3 {[%emt 0:00:30]} Rb8 {[%emt 0:00:30]} 9. d5 {[%emt 0:00:30]} Na5 {[%emt 0:00:30]} 10. Bg5 {[%emt 0:00:30]} c5 {[%emt 0:00:30]} 11. dxc6 {[%emt 0:00:30]} Nxc6 {[%emt 0:00:30]} 12. Rc1 {[%emt 0:00:30]} Bd7 {[%emt 0:00:30]} 13. Nd5 {[%emt 0:00:30]} Ne4 {[%emt 0:00:30]} 14. Be3 {[%emt 0:00:30]} e6 {[%emt 0:00:30]} 15. Nb6 {[%emt 0:00:30]} Be8 {[%emt 0:00:30]} 16. a3 {[%emt 0:00:30]} Bb2 {[%emt 0:00:30]} 17. Rb1 {[%emt 0:00:30]} Bxa3 {[%emt 0:00:30]} 18. Qc2 {[%emt 0:00:30]} f5 {[%emt 0:00:30]} 19. h4 {[%emt 0:00:30]} Nb4 {[%emt 0:00:30]} 20. Qd1 {[%emt 0:00:30]} Nc3 {[%emt 0:00:30]} 21. Qd2 {[%emt 0:00:30]} Ne4 {[%emt 0:00:30]} 22. Qd1 {[%emt 0:00:30]} Nc6 {[%emt 0:00:30]} 23. Ng5 {[%emt 0:00:30]} Nxg5 {[%emt 0:00:30]} 24. hxg5 {[%emt 0:00:30]} Bb4 {[%emt 0:00:30]} 25. Qc1 {[%emt 0:00:30]} Bc5 {[%emt 0:00:30]} 26. Na4 {[%emt 0:00:30]} Nd4 {[%emt 0:00:30]} 27. Nc3 {[%emt 0:00:30]} a5 {[%emt 0:00:30]} 28. Qd2 {[%emt 0:00:30]} Qb6 {[%emt 0:00:30]} 29. Na4 {[%emt 0:00:30]} Bxa4 {[%emt 0:00:30]} 30. bxa4 {[%emt 0:00:30]} Qa7 {[%emt 0:00:30]} 31. Bxd4 {[%emt 0:00:30]} Bxd4 {[%emt 0:00:30]} 32. Rb5 {[%emt 0:00:30]} Bc5 {[%emt 0:00:30]} 33. Rxa5 {[%emt 0:00:30]} Qb6 {[%emt 0:00:30]} 34. Rb5 {[%emt 0:00:30]} Qa7 {[%emt 0:00:30]} 35. Ra5 {[%emt 0:00:30]} Qb6 {[%emt 0:00:30]} 36. Rb5 {[%emt 0:00:30]} Qc7 {[%emt 0:00:30]} 1/2-1/2